fUST/lending_fUST_20250809
["ID","MTS","AMOUNT","RATE_DAILY","PERIOD"]
[378046742,1754689833812,-151.0,0.00024398,7]
[378046743,1754689833826,-151.0,0.00024398,7]
[378046744,1754689833835,-460.0,0.00024398,2]
[378046745,1754689833844,-460.0,0.00024398,2]
[378046746,1754689833853,-460.0,0.00024398,2]
[378046747,1754689833862,-151.0,0.00024398,7]
[378046748,1754689833871,-151.0,0.00024398,7]
[378046749,1754689833880,-151.0,0.00024398,7]
[378046750,1754689833890,-151.0,0.00024398,7]
[378046751,1754689833899,-151.0,0.00024398,7]
[378046752,1754689833908,-151.0,0.00024398,7]
[378046753,1754689833917,-460.0,0.00024398,2]
[378046754,1754689833927,-151.0,0.00024398,7]
[378046755,1754689833935,-151.0,0.00024398,7]
[378046756,1754689833945,-215.869112,0.00024398,7]
[378046757,1754689833954,-460.0,0.00024398,2]
[378046758,1754689833963,-460.0,0.00024398,2]
[378046759,1754689833972,-238.495409,0.00024398,7]
[378046760,1754689833982,-151.0,0.00024398,7]
[378046761,1754689833991,-2.44567922,0.00024398,7]
[378046762,1754689834003,-236.04972978,0.00024398,7]
[378046763,1754689834012,-417.88717517,0.00024398,2]
[378046764,1754689834023,-42.11282483,0.00024398,2]
[378046765,1754689834033,-460.0,0.00024398,2]
[378046766,1754689834042,-35.04441438,0.00024398,7]
[378046780,1754689838165,-419.55030414,0.00024397,2]
[378046781,1754689838177,-40.44969586,0.00024397,2]
[378046782,1754689838186,-115.95558562,0.00024398,7]
[378046783,1754689838196,-195.202958,0.00024398,7]
[378046784,1754689838205,-151.0,0.00024398,7]
[378046785,1754689838215,-151.0,0.00024398,7]
[378046786,1754689838223,-206.62349452,0.00024398,3]
[378046787,1754689838235,-193.37650548,0.00024398,3]
[378046788,1754689838244,-151.0,0.00024398,7]
[378046789,1754689838253,-273.959632,0.00024398,7]
[378046790,1754689838263,-460.0,0.00024398,2]
[378046791,1754689838272,-587.93528,0.00024398,7]
[378046792,1754689838283,-181.94654438,0.00024398,7]
[378047176,1754689843056,-405.98873562,0.00024398,7]
[378047178,1754689843066,-577.85530509,0.00024398,7]
[378047196,1754689846167,-460.0,0.00024396,2]
[378047197,1754689846176,-527.58,0.00024397,2]
[378047198,1754689846185,-151.0,0.00024397,7]
[378047199,1754689846194,-151.0,0.00024397,7]
[378047200,1754689846204,-151.0,0.00024397,7]
[378047201,1754689846213,-151.0,0.00024397,7]
[378047202,1754689846221,-151.0,0.00024397,7]
[378047203,1754689846230,-10.07997491,0.00024398,7]
[378047204,1754689846239,-587.93528,0.00024398,7]
[378047205,1754689846248,-587.93528,0.00024398,7]
[378047206,1754689846257,-587.93528,0.00024398,7]
[378047207,1754689846267,-587.93528,0.00024398,7]
[378047208,1754689846276,-587.93528,0.00024398,7]
[378047209,1754689846285,-587.93528,0.00024398,7]
[378047210,1754689846294,-446.01285037,0.00024398,7]
[378047212,1754689857544,168.0,0.00023997,2]
[378047213,1754689903963,150.373185,0.00026603,30]
[378047214,1754689904316,150.373185,0.0002489,30]
[378047215,1754689971366,150.0,0.0003,120]
[378047216,1754689994573,255.0,0.00024039,2]
[378047219,1754690501982,150.373185,0.00026603,30]
[378047220,1754690502515,150.373185,0.0002489,30]
[378047224,1754690947364,10000.0,0.00023327,2]
[378047271,1754691032455,-168.0,0.00024251,2]
[378047272,1754691032466,-197.28,0.00024254,2]
[378047273,1754691032475,-889.07555142,0.00024273,2]
[378047274,1754691032484,-1200.0,0.00024296,2]
[378047275,1754691032494,-300.0,0.00024296,2]
[378047276,1754691032504,-369.1180546,0.00024297,2]
[378047277,1754691032513,-1200.0,0.00024297,2]
[378047279,1754691032523,-300.0,0.00024297,2]
[378047281,1754691032532,-300.0,0.00024297,2]
[378047282,1754691032541,-300.0,0.00024297,2]
[378047283,1754691032551,-460.0,0.00024298,2]
[378047284,1754691032703,-460.0,0.00024298,2]
[378047285,1754691032719,-460.0,0.00024298,2]
[378047286,1754691032730,-1210.35,0.00024298,2]
[378047287,1754691032740,-74.88628798,0.00024298,2]
[378047331,1754691040356,-252.01371202,0.00024298,2]
[378047332,1754691040367,-886.75,0.00024298,2]
[378047333,1754691040377,-830.39,0.00024298,2]
[378047334,1754691040386,-787.11,0.00024298,2]
[378047335,1754691040395,-460.0,0.00024298,2]
[378047336,1754691040405,-460.0,0.00024298,2]
[378047337,1754691040414,-7008.50885784,0.00024298,2]
[378047338,1754691040423,-160.0,0.00024299,3]
[378047339,1754691040434,-160.0,0.00024299,3]
[378047340,1754691040444,-160.0,0.00024299,3]
[378047341,1754691040453,-16066.55889147,0.00024299,3]
[378047342,1754691040463,-600.0,0.00024368,2]
[378047343,1754691040473,-151.0,0.00024368,2]
[378047344,1754691040482,-151.0,0.00024368,2]
[378047345,1754691040491,-151.0,0.00024368,2]
[378047346,1754691040501,-151.0,0.00024368,2]
[378047347,1754691040510,-151.0,0.00024368,2]
[378047348,1754691040519,-151.0,0.00024368,2]
[378047349,1754691040528,-151.0,0.00024368,2]
[378047350,1754691040538,-151.0,0.00024368,2]
[378047351,1754691040547,-151.0,0.00024368,2]
[378047352,1754691040556,-151.0,0.00024368,2]
[378047353,1754691040566,-151.0,0.00024368,2]
[378047354,1754691040575,-151.0,0.00024368,2]
[378047355,1754691040585,-250.0,0.00024368,2]
[378047356,1754691040597,-250.0,0.00024368,2]
[378047357,1754691040606,-250.0,0.00024368,2]
[378047358,1754691040616,-250.0,0.00024368,2]
[378047359,1754691040625,-151.0,0.00024368,2]
[378047360,1754691040635,-151.0,0.00024368,2]
[378047361,1754691040644,-151.0,0.00024368,2]
[378047362,1754691040654,-151.0,0.00024368,2]
[378047363,1754691040663,-151.0,0.00024368,2]
[378047364,1754691040673,-519.63095064,0.00024373,2]
[378047365,1754691040683,-522.83916595,0.00024373,2]
[378047366,1754691040693,-500.0,0.00024373,2]
[378047367,1754691040703,-500.0,0.00024373,2]
[378047368,1754691040713,-500.0,0.00024373,2]
[378047369,1754691040722,-500.0,0.00024373,2]
[378047370,1754691040732,-500.0,0.00024373,2]
[378047371,1754691040741,-500.0,0.00024373,2]
[378047372,1754691040750,-500.0,0.00024373,2]
[378047373,1754691040760,-500.0,0.00024373,2]
[378047374,1754691040771,-500.0,0.00024373,2]
[378047375,1754691040780,-460.0,0.00024381,2]
[378047376,1754691040790,-460.0,0.00024381,2]
[378047377,1754691040800,-460.0,0.00024381,2]
[378047378,1754691040810,-151.0,0.00024381,7]
[378047379,1754691040821,-1584.44,0.00024381,2]
[378047380,1754691040831,-152.632396,0.00024381,7]
[378047381,1754691040840,-164.26656748,0.00024381,2]
[378047574,1754691044812,-151.0,0.00024368,2]
[378047576,1754691044821,-151.0,0.00024368,2]
[378047578,1754691044830,-151.0,0.00024368,2]
[378047580,1754691044839,-295.73343252,0.00024381,2]
[378047582,1754691044848,-70.00789626,0.00024381,2]
[378047808,1754691103864,150.373185,0.00026603,30]
[378047809,1754691152621,2179.0,0.000242,2]
[378047811,1754691207574,777.94110751,0.00024198,2]
[378047812,1754691397910,680.69846908,0.00024198,2]
[378047813,1754691407267,168.0,0.00023634,2]
[378047814,1754691409867,168.0,0.0002373,2]
[378047816,1754691588158,595.61116041,0.00024198,2]
[378047817,1754691705447,150.373185,0.00026602,30]
[378047818,1754691744022,295.29444368,0.00024199,2]
[378047819,1754691778989,521.15976542,0.00024191,2]
[378047822,1754691969224,456.01479469,0.0002419,2]
[378047823,1754692084274,236.23555492,0.00024198,2]
[378047825,1754692154549,399.01294538,0.0002419,2]
[378047857,1754692232573,-221.71,0.00024255,2]
[378047860,1754692232582,-236.23555491,0.00024264,2]
[378047861,1754692232592,-300.0,0.00024288,2]
[378047862,1754692232602,-300.0,0.00024288,2]
[378047863,1754692232611,-300.0,0.00024288,2]
[378047864,1754692232624,-300.0,0.00024288,2]
[378047865,1754692232634,-300.0,0.00024288,2]
[378047866,1754692232643,-499.11444509,0.00024288,2]
[378047891,1754692238340,-620.88555491,0.00024288,2]
[378047893,1754692238349,-537.37187482,0.00024288,3]
[378047900,1754692238559,-64.72812518,0.00024288,3]
[378047901,1754692238568,-301.05,0.00024288,3]
[378047902,1754692238578,-150.52,0.00024288,3]
[378047903,1754692238702,-451.59,0.00024288,3]
[378047904,1754692238714,-460.0,0.00024289,2]
[378047905,1754692238723,-167.25961939,0.00024289,2]
[378047906,1754692238733,-460.0,0.00024289,2]
[378047907,1754692238742,-460.0,0.00024289,2]
[378047908,1754692238752,-460.0,0.00024289,2]
[378047909,1754692238761,-460.0,0.00024289,2]
[378047910,1754692238770,-530.41,0.00024289,2]
[378047911,1754692238779,-1556.75,0.00024289,2]
[378047912,1754692238789,-460.0,0.00024289,2]
[378047913,1754692238798,-1198.25,0.00024289,2]
[378047914,1754692238807,-460.0,0.00024289,2]
[378047915,1754692238816,-460.0,0.00024289,2]
[378047916,1754692238825,-460.0,0.00024289,2]
[378047917,1754692238835,-795.79,0.00024289,2]
[378047918,1754692238843,-460.0,0.00024289,2]
[378047919,1754692238853,-869.04,0.00024289,2]
[378047920,1754692238862,-460.0,0.00024289,2]
[378047921,1754692238871,-792.65,0.00024289,2]
[378047922,1754692238880,-533.39,0.00024289,2]
[378047923,1754692238889,-865.69,0.00024289,2]
[378047924,1754692238898,-460.0,0.00024289,2]
[378047925,1754692238907,-460.0,0.00024289,2]
[378047926,1754692238917,-460.0,0.00024289,2]
[378047927,1754692238926,-393.12459707,0.0002429,2]
[378047928,1754692238936,-273.353264,0.0002429,2]
[378047929,1754692238946,-460.0,0.0002429,2]
[378047930,1754692238955,-460.0,0.0002429,2]
[378047931,1754692238965,-460.0,0.0002429,2]
[378047932,1754692238975,-462.18231419,0.0002429,2]
[378047933,1754692238984,-460.0,0.0002429,2]
[378047934,1754692238994,-359.11507111,0.0002429,2]
[378047935,1754692239005,-321.60767332,0.0002429,2]
[378047936,1754692239019,-460.0,0.0002429,2]
[378047937,1754692239030,-150.07750048,0.0002429,2]
[378047938,1754692239040,-460.0,0.0002429,2]
[378047939,1754692239049,-460.0,0.0002429,2]
[378047940,1754692239059,-460.0,0.0002429,2]
[378047941,1754692239068,-460.0,0.0002429,2]
[378047942,1754692239078,-895.47701414,0.0002429,2]
[378047943,1754692239087,-460.0,0.0002429,2]
[378047944,1754692239096,-460.0,0.0002429,2]
[378047945,1754692239106,-460.0,0.0002429,2]
[378047946,1754692239115,-460.0,0.0002429,2]
[378047947,1754692239125,-460.0,0.0002429,2]
[378047948,1754692239134,-460.0,0.0002429,2]
[378047949,1754692239143,-460.0,0.0002429,2]
[378047950,1754692239153,-460.0,0.0002429,2]
[378047951,1754692239170,-460.0,0.0002429,2]
[378047952,1754692239179,-460.0,0.0002429,2]
[378047953,1754692239189,-460.0,0.0002429,2]
[378047954,1754692239198,-151.0,0.0002429,7]
[378047955,1754692239209,-151.0,0.0002429,7]
[378047956,1754692239219,-460.0,0.0002429,2]
[378047957,1754692239231,-178.86280057,0.0002429,2]
[378047958,1754692239240,-460.0,0.0002429,2]
[378047959,1754692239251,-460.0,0.0002429,2]
[378047960,1754692239260,-460.0,0.0002429,2]
[378047961,1754692239271,-460.0,0.0002429,2]
[378047962,1754692239280,-151.0,0.0002429,7]
[378047963,1754692239289,-151.122506,0.0002429,7]
[378047964,1754692239298,-688.55,0.0002429,2]
[378047965,1754692239307,-460.0,0.0002429,2]
[378047966,1754692239316,-151.0,0.0002429,7]
[378047967,1754692239327,-460.0,0.0002429,2]
[378047968,1754692239337,-151.0,0.0002429,7]
[378047969,1754692239347,-151.0,0.0002429,7]
[378047970,1754692239358,-151.0,0.0002429,7]
[378047971,1754692239368,-151.0,0.0002429,7]
[378047972,1754692239377,-151.0,0.0002429,7]
[378047973,1754692239386,-460.0,0.0002429,2]
[378047974,1754692239395,-460.0,0.0002429,2]
[378047975,1754692239404,-151.0,0.0002429,7]
[378047976,1754692239415,-151.0,0.0002429,7]
[378047977,1754692239425,-460.0,0.0002429,2]
[378047978,1754692239436,-460.0,0.0002429,2]
[378047979,1754692239445,-151.0,0.0002429,7]
[378047980,1754692239455,-151.0,0.0002429,7]
[378047981,1754692239464,-285.249806,0.0002429,7]
[378047982,1754692239473,-151.0,0.0002429,7]
[378047983,1754692239483,-285.249806,0.0002429,7]
[378047984,1754692239494,-151.0,0.0002429,7]
[378047985,1754692239504,-151.0,0.0002429,7]
[378047986,1754692239516,-460.0,0.0002429,2]
[378047987,1754692239526,-167.765215,0.0002429,7]
[378047988,1754692239537,-167.765215,0.0002429,7]
[378047989,1754692239546,-167.765215,0.0002429,7]
[378047990,1754692239555,-167.765215,0.0002429,7]
[378047991,1754692239566,-500.0,0.0002429,2]
[378047992,1754692239575,-500.0,0.0002429,2]
[378047993,1754692239585,-460.0,0.0002429,2]
[378047994,1754692239596,-500.0,0.0002429,2]
[378047995,1754692239606,-500.0,0.0002429,2]
[378047996,1754692239620,-373.07000011,0.0002429,2]
[378047997,1754692239629,-500.0,0.0002429,2]
[378047998,1754692239640,-342.93730182,0.0002429,2]
[378047999,1754692239649,-500.0,0.0002429,2]
[378048000,1754692239659,-500.0,0.0002429,2]
[378048001,1754692239668,-500.0,0.0002429,2]
[378048002,1754692239679,-555.03704433,0.0002429,2]
[378048003,1754692239689,-460.0,0.0002429,2]
[378048004,1754692239700,-482.09356769,0.0002429,2]
[378048005,1754692239711,-460.0,0.0002429,2]
[378048006,1754692239721,-151.0,0.0002429,7]
[378048007,1754692239731,-259.912016,0.0002429,7]
[378048008,1754692239742,-460.0,0.0002429,2]
[378048009,1754692239753,-151.0,0.0002429,7]
[378048010,1754692239762,-151.0,0.0002429,7]
[378048011,1754692239772,-151.0,0.0002429,7]
[378048012,1754692239781,-151.0,0.0002429,7]
[378048013,1754692239790,-151.0,0.0002429,7]
[378048014,1754692239801,-151.0,0.0002429,7]
[378048015,1754692239811,-151.0,0.0002429,7]
[378048016,1754692239820,-151.0,0.0002429,7]
[378048017,1754692239831,-199.435324,0.0002429,7]
[378048018,1754692239841,-460.0,0.0002429,2]
[378048019,1754692239851,-151.0,0.0002429,7]
[378048020,1754692239862,-301.999999,0.0002429,7]
[378048021,1754692239871,-460.0,0.0002429,2]
[378048022,1754692239881,-151.0,0.0002429,7]
[378048023,1754692239890,-151.0,0.0002429,7]
[378048024,1754692239900,-151.0,0.0002429,7]
[378048025,1754692239909,-151.0,0.0002429,7]
[378048026,1754692239919,-151.0,0.0002429,7]
[378048027,1754692239929,-151.0,0.0002429,7]
[378048028,1754692239938,-460.0,0.0002429,2]
[378048029,1754692239948,-460.0,0.0002429,2]
[378048030,1754692239958,-460.0,0.0002429,2]
[378048031,1754692239968,-467.023142,0.0002429,2]
[378048032,1754692239978,-460.0,0.0002429,2]
[378048033,1754692239987,-151.0,0.0002429,7]
[378048034,1754692240003,-151.0,0.0002429,7]
[378048035,1754692240013,-151.0,0.0002429,7]
[378048036,1754692240023,-151.0,0.0002429,7]
[378048037,1754692240033,-151.0,0.0002429,7]
[378048038,1754692240042,-151.0,0.0002429,7]
[378048039,1754692240053,-151.0,0.0002429,7]
[378048040,1754692240064,-460.0,0.0002429,2]
[378048041,1754692240074,-151.0,0.0002429,7]
[378048042,1754692240083,-151.0,0.0002429,7]
[378048043,1754692240092,-279.51989389,0.0002429,2]
[378048044,1754692240102,-10949.27236582,0.00024291,2]
[378048371,1754692292747,5000.0,0.00030137,120]
[378048372,1754692304618,150.373185,0.00026602,30]
[378048373,1754692335623,10000.0,0.000242,2]
[378048374,1754692344800,349.13632719,0.00024191,2]
[378048375,1754692349632,10000.0,0.000242,2]
[378048376,1754692369327,17663.20291086,0.00024191,2]
[378048378,1754692417230,10000.0,0.00030137,120]
[378048379,1754692463235,5000.0,0.00023,60]
[378048380,1754692753836,5000.0,0.0002145,2]
[378048381,1754692904142,150.373185,0.00026597,30]
[378048382,1754693370213,197.21089338,0.00022375,2]
[378048409,1754693432903,-300.0,0.00023066,2]
[378048410,1754693432913,-300.0,0.00023066,2]
[378048411,1754693432922,-1200.0,0.00023066,2]
[378048412,1754693432933,-156.42115859,0.00023067,2]
[378048413,1754693432942,-1148.33,0.00023067,2]
[378048414,1754693432952,-832.83,0.00023067,2]
[378048415,1754693432962,-762.63,0.00023067,2]
[378048416,1754693432972,-759.62,0.00023067,2]
[378048417,1754693432982,-460.0,0.00023067,2]
[378048418,1754693432991,-460.0,0.00023067,2]
[378048419,1754693433000,-460.0,0.00023067,2]
[378048420,1754693433010,-24900.0,0.00023067,2]
[378048422,1754693433020,-1148.33,0.00023341,2]
[378048425,1754693433030,-832.83,0.00023341,2]
[378048427,1754693433040,-762.63,0.00023341,2]
[378048429,1754693433049,-759.62,0.00023341,2]
[378048431,1754693433059,-308.03,0.00023341,2]
[378048432,1754693433067,-460.0,0.00023341,2]
[378048433,1754693433075,-460.0,0.00023341,2]
[378048434,1754693433084,-215.69687423,0.00023505,2]
[378048435,1754693433094,-1148.33,0.00023615,2]
[378048436,1754693433103,-832.83,0.00023615,2]
[378048437,1754693433113,-762.63,0.00023615,2]
[378048438,1754693433123,-759.62,0.00023615,2]
[378048439,1754693433133,-220.74513888,0.00023615,2]
[378048440,1754693433142,-460.0,0.00023615,2]
[378048441,1754693433152,-1148.33,0.00023889,2]
[378048442,1754693433161,-832.83,0.00023889,2]
[378048443,1754693433171,-762.63,0.00023889,2]
[378048444,1754693433181,-217.31307405,0.00023889,2]
[378048451,1754693438515,-542.30692595,0.00023889,2]
[378048452,1754693438524,-460.0,0.00023889,2]
[378048453,1754693438534,-305.4942863,0.00023898,2]
[378048454,1754693438543,-177.17666619,0.000239,2]
[378048455,1754693438552,-600.0,0.00023934,2]
[378048456,1754693438561,-500.0,0.00023973,2]
[378048457,1754693438570,-500.0,0.00023973,2]
[378048458,1754693438580,-500.0,0.00023973,2]
[378048459,1754693438589,-500.0,0.00023973,2]
[378048460,1754693438598,-351.22,0.0002399,3]
[378048461,1754693438607,-175.61,0.0002399,3]
[378048462,1754693438617,-526.85,0.0002399,3]
[378048463,1754693438626,-460.0,0.00023998,2]
[378048464,1754693438635,-460.0,0.00023998,2]
[378048465,1754693438645,-460.0,0.00023998,2]
[378048466,1754693438654,-460.61666411,0.00023998,2]
[378048467,1754693438663,-460.0,0.00023998,2]
[378048468,1754693438672,-460.0,0.00023998,2]
[378048469,1754693438681,-460.0,0.00023998,2]
[378048470,1754693438690,-460.0,0.00023998,2]
[378048471,1754693438700,-460.0,0.00023998,2]
[378048472,1754693438709,-95.943344,0.00023998,2]
[378048473,1754693438721,-300.0,0.00023998,2]
[378048474,1754693438737,-130.93248793,0.00023998,2]
[378048475,1754693438749,-500.0,0.00023998,2]
[378048476,1754693438766,-1.54176886,0.00023998,2]
[378048509,1754693443573,-367.49482078,0.00023998,2]
[378048510,1754693443583,-101.80645659,0.00023998,2]
[378048561,1754693448951,164.978103,0.00013699,2]
[378048562,1754693485207,183.03186685,0.0002189,2]
[378048563,1754693503068,150.39334,0.00026601,30]
[378048564,1754694103834,150.39334,0.00026564,30]
[378048566,1754694552024,164.978102,0.00013699,2]
[378048567,1754694558141,-300.0,0.00021905,2]
[378048568,1754694558161,-15787.5712494,0.00021906,2]
[378048569,1754694574137,-59431.3780166,0.00021906,2]
[378048570,1754694574159,-169.977067,0.00021943,2]
[378048571,1754694574182,-10026.3679576,0.00021959,2]
[378048594,1754694633024,-267.30750053,0.00022834,2]
[378048595,1754694633033,-158.87249947,0.00022873,2]
[378048642,1754694638653,-18.30416671,0.00022873,2]
[378048644,1754694638663,-352.96,0.00022924,10]
[378048646,1754694638672,-300.0,0.00022932,2]
[378048648,1754694638682,-460.0,0.00022933,2]
[378048650,1754694638691,-460.0,0.00022933,2]
[378048652,1754694638701,-500.0,0.00022933,2]
[378048654,1754694638713,-154.86697646,0.00022933,2]
[378048656,1754694638723,-500.0,0.00022933,2]
[378048658,1754694638731,-474.92187817,0.00022933,2]
[378048660,1754694638741,-460.0,0.00022933,2]
[378048662,1754694638751,-460.0,0.00022933,2]
[378048664,1754694638759,-460.0,0.00022933,2]
[378048666,1754694638769,-396.31,0.00022933,2]
[378048668,1754694638779,-460.0,0.00022933,2]
[378048670,1754694638788,-460.0,0.00022933,2]
[378048672,1754694638797,-465.95,0.00022933,2]
[378048674,1754694638806,-577.47,0.00022933,2]
[378048676,1754694638814,-460.0,0.00022933,2]
[378048678,1754694638823,-460.0,0.00022933,2]
[378048680,1754694638833,-460.0,0.00022933,2]
[378048682,1754694638842,-1491.89,0.00022933,2]
[378048684,1754694638851,-1010.39,0.00022933,2]
[378048686,1754694638860,-603.5,0.00022933,2]
[378048688,1754694638870,-460.0,0.00022933,2]
[378048690,1754694638879,-694.02,0.00022933,2]
[378048692,1754694638888,-460.0,0.00022933,2]
[378048694,1754694638897,-635.53,0.00022933,2]
[378048697,1754694638906,-61.82214517,0.00022933,2]
[378048700,1754694638917,-398.17785483,0.00022933,2]
[378048702,1754694638926,-460.0,0.00022933,2]
[378048704,1754694638935,-633.01,0.00022933,2]
[378048706,1754694638944,-12.30455477,0.00022933,2]
[378048720,1754694640863,-817.31544523,0.00022933,2]
[378048721,1754694640872,-460.0,0.00022933,2]
[378048722,1754694640882,-460.0,0.00022933,2]
[378048723,1754694640891,-460.0,0.00022933,2]
[378048724,1754694640900,-460.0,0.00022933,2]
[378048725,1754694640910,-500.0,0.00022934,2]
[378048726,1754694640919,-463.67669307,0.00022934,2]
[378048727,1754694640928,-460.0,0.00022934,2]
[378048728,1754694640938,-460.0,0.00022934,2]
[378048729,1754694640947,-460.0,0.00022934,2]
[378048730,1754694640957,-226.18525993,0.00022934,2]
[378048731,1754694640968,-233.81474007,0.00022934,2]
[378048732,1754694640978,-535.0,0.00022934,2]
[378048733,1754694640988,-470.69,0.00022934,2]
[378048734,1754694640998,-257.34,0.00022934,2]
[378048735,1754694641007,-309.16672412,0.00022934,2]
[378048736,1754694641016,-460.0,0.00022934,2]
[378048737,1754694641026,-45.36283771,0.00022934,2]
[378048738,1754694641038,-369.38522885,0.00022934,2]
[378048739,1754694641047,-460.0,0.00022934,2]
[378048740,1754694641057,-51.66477115,0.00022934,2]
[378048741,1754694641070,-212.70522885,0.00022934,2]
[378048742,1754694641081,-460.0,0.00022934,2]
[378048743,1754694641090,-80.01860089,0.00022934,2]
[378048744,1754694641104,-379.98139911,0.00022934,2]
[378048745,1754694641114,-460.0,0.00022934,2]
[378048746,1754694641124,-460.0,0.00022934,2]
[378048747,1754694641134,-460.0,0.00022934,2]
[378048748,1754694641144,-460.0,0.00022934,2]
[378048749,1754694641155,-102.09574071,0.00022934,2]
[378048757,1754694646255,-464.28484874,0.00022933,2]
[378048758,1754694646264,-357.90425929,0.00022934,2]
[378048759,1754694646274,-460.0,0.00022934,2]
[378048760,1754694646283,-551.25,0.00022934,2]
[378048761,1754694646292,-460.0,0.00022934,2]
[378048762,1754694646301,-460.0,0.00022934,2]
[378048763,1754694646311,-151.0,0.00022934,7]
[378048764,1754694646320,-460.0,0.00022934,2]
[378048765,1754694646329,-176.861688,0.00022934,7]
[378048767,1754694646338,-151.0,0.00022934,7]
[378048769,1754694646349,-151.0,0.00022934,7]
[378048770,1754694646359,-460.0,0.00022934,2]
[378048771,1754694646482,-454.18307064,0.00022934,2]
[378048772,1754694646549,500.0,0.00022021,2]
[378048780,1754694646804,-5.81692936,0.00022934,2]
[378048781,1754694646814,-151.0,0.00022934,7]
[378048783,1754694646823,-460.0,0.00022934,2]
[378048785,1754694646832,-460.0,0.00022934,2]
[378048787,1754694646841,-151.0,0.00022934,7]
[378048788,1754694646851,-460.0,0.00022934,2]
[378048789,1754694646860,-151.0,0.00022934,7]
[378048790,1754694646868,-460.0,0.00022934,2]
[378048791,1754694646877,-256.724826,0.00022934,7]
[378048792,1754694646886,-256.724826,0.00022934,7]
[378048793,1754694646895,-461.13471542,0.00022934,2]
[378048794,1754694646905,-460.0,0.00022934,2]
[378048795,1754694646914,-434.253354,0.00022934,7]
[378048796,1754694646923,-434.253354,0.00022934,7]
[378048797,1754694646932,-477.2,0.00022934,2]
[378048798,1754694646941,-771.87,0.00022934,2]
[378048799,1754694646950,-151.0,0.00022934,7]
[378048800,1754694646960,-151.0,0.00022934,7]
[378048801,1754694646969,-460.0,0.00022934,2]
[378048802,1754694646978,-460.0,0.00022934,2]
[378048803,1754694646987,-460.0,0.00022934,2]
[378048804,1754694646996,-460.0,0.00022934,2]
[378048805,1754694647005,-151.0,0.00022934,7]
[378048806,1754694647014,-151.0,0.00022934,7]
[378048807,1754694647023,-151.0,0.00022934,7]
[378048808,1754694647032,-460.0,0.00022934,2]
[378048809,1754694647040,-177.873736,0.00022934,7]
[378048810,1754694647049,-170.08630115,0.00022934,2]
[378048811,1754694647058,-460.0,0.00022934,2]
[378048812,1754694647067,-460.0,0.00022934,2]
[378048813,1754694647076,-612.16,0.00022934,2]
[378048814,1754694647085,-460.0,0.00022934,2]
[378048816,1754694647095,-151.0,0.00022934,7]
[378048817,1754694647104,-151.0,0.00022934,7]
[378048818,1754694647113,-151.0,0.00022934,7]
[378048819,1754694647123,-500.0,0.00022934,2]
[378048820,1754694647142,-327.77762921,0.00022934,2]
[378048821,1754694647157,-151.0,0.00022934,7]
[378048822,1754694647167,-151.0,0.00022934,7]
[378048823,1754694647176,-151.0,0.00022934,7]
[378048824,1754694647185,-294.81336106,0.00022934,2]